[Event "Reykjavik Open 2025"]
[Site "Reykjavik"]
[Date "2025.04.09"]
[Round "1.22"]
[White "Kunz, Andre"]
[Black "Bailet, Pierre"]
[Result "1/2-1/2"]
[Annotator "ChessBase"]
[ECO "C55"]
[WhiteElo "2115"]
[BlackElo "2495"]
[PlyCount "90"]
[EventDate "2025.04.09"]
[EventType "swiss"]
[EventCountry "ISL"]
[SourceTitle "playchess.com"]
[Source "ChessBase"]
[SourceQuality "1"]
[TimeControl "40/5400+30:1800+30"]

1. e4 {[%emt 0:00:01]} e5 {[%emt 0:30:21]} 2. Nf3 {[%emt 0:00:14]} Nc6 {[%emt 0:00:16]} 3. Bc4 {[%emt 0:00:10]} Nf6 {[%emt 0:00:28]} 4. d3 {[%emt 0:00:12]} h6 {[%emt 0:00:29]} 5. c3 {[%emt 0:02:31]} d6 {[%emt 0:03:10]} 6. a4 {[%emt 0:02:49]} g6 {[%emt 0:01:40]} 7. Nbd2 {[%emt 0:02:03]} Bg7 {[%emt 0:00:40]} 8. O-O {[%emt 0:00:24]} O-O {[%emt 0:00:22]} 9. Re1 {[%emt 0:04:12]} Kh7 {[%emt 0:07:51]} 10. Nf1 {[%emt 0:05:41]} d5 {[%emt 0:09:27]} 11. Bb3 {[%emt 0:10:22]} Be6 {[%emt 0:03:42]} 12. a5 {[%emt 0:07:20]} b6 {[%emt 0:06:25]} 13. axb6 {[%emt 0:09:26]} axb6 {[%emt 0:00:54]} 14. Rxa8 {[%emt 0:00:06]} Qxa8 {[%emt 0:00:07]} 15. Ng3 {[%emt 0:11:56]} Na5 {[%emt 0:09:37]} 16. Bc2 {[%emt 0:09:24]} dxe4 {[%emt 0:02:57]} 17. Nxe4 {[%emt 0:00:42]} Nxe4 {[%emt 0:00:16]} 18. dxe4 {[%emt 0:02:59]} Rd8 {[%emt 0:01:06]} 19. Qe2 {[%emt 0:00:07]} Bc4 {[%emt 0:01:25]} 20. Qe3 {[%emt 0:00:03]} Nb3 {[%emt 0:04:15]} 21. Nd2 {[%emt 0:01:29]} Nxd2 {[%emt 0:06:23]} 22. Bxd2 {[%emt 0:00:03]} Kg8 {[%emt 0:00:28]} 23. Bc1 {[%emt 0:03:06]} Qa2 {[%emt 0:02:17]} 24. Qf3 {[%emt 0:04:55]} h5 {[%emt 0:04:47]} 25. Rd1 {[%emt 0:00:39]} Rxd1+ {[%emt 0:00:19]} 26. Qxd1 {[%emt 0:00:16]} Qa1 {[%emt 0:00:16]} 27. h4 {[%emt 0:03:49]} Bf8 {[%emt 0:01:36]} 28. Qd2 {[%emt 0:02:42]} Be6 {[%emt 0:00:23]} 29. g3 {[%emt 0:00:26]} Kh7 {[%emt 0:01:15]} 30. Kg2 {[%emt 0:00:12]} Bg7 {[%emt 0:00:37]} 31. Bd3 {[%emt 0:01:49]} Qa4 {[%emt 0:00:14]} 32. Qe2 {[%emt 0:01:46]} Bg4 {[%emt 0:00:36]} 33. Bb5 {[%emt 0:03:44]} Qa1 {[%emt 0:00:33]} 34. Qe3 {[%emt 0:00:23]} Be6 {[%emt 0:00:17]} 35. b4 {[%emt 0:02:04]} Bf8 {[%emt 0:00:52]} 36. Bd2 {[%emt 0:00:28]} Qb2 {[%emt 0:00:40]} 37. Qd3 {[%emt 0:00:52]} c5 {[%emt 0:00:45]} 38. Be3 {[%emt 0:01:10]} cxb4 {[%emt 0:00:26]} 39. cxb4 {[%emt 0:00:13]} Qxb4 {[%emt 0:00:16]} 40. Bxb6 {[%emt 0:00:28]} Bc5 {[%emt 0:01:15]} 41. Bxc5 {[%emt 0:30:55]} Qxc5 {[%emt 0:30:06]} 42. Ba6 {[%emt 0:03:03]} Qc6 {[%emt 0:00:55]} 43. Bb5 {[%emt 0:00:56]} Qc1 {[%emt 0:00:45]} 44. Qf1 {[%emt 0:03:24]} Qc2 {[%emt 0:00:24]} 45. Qd3 {[%emt 0:00:29]} Qc1 {[%emt 0:00:34]} 1/2-1/2

[Event "Reykjavik Open 2025"]
[Site "Reykjavik"]
[Date "2025.04.09"]
[Round "1.23"]
[White "Draskovic, Luka"]
[Black "Bourgois, Bastien"]
[Result "1-0"]
[Annotator "ChessBase"]
[ECO "B24"]
[WhiteElo "2488"]
[BlackElo "2112"]
[PlyCount "61"]
[EventDate "2025.04.09"]
[EventType "swiss"]
[EventCountry "ISL"]
[SourceTitle "playchess.com"]
[Source "ChessBase"]
[SourceQuality "1"]
[TimeControl "40/5400+30:1800+30"]

1. e4 {[%emt 0:00:03]} c5 {[%emt 0:29:52]} 2. Nc3 {[%emt 0:01:23]} Nc6 {[%emt 0:00:07]} 3. Nge2 {[%emt 0:00:42]} Nf6 {[%emt 0:01:53]} 4. g3 {[%emt 0:01:22]} e5 {[%emt 0:05:12]} 5. Bg2 {[%emt 0:00:37]} d6 {[%emt 0:00:56]} 6. d3 {[%emt 0:00:27]} Be7 {[%emt 0:01:15]} 7. O-O {[%emt 0:00:48]} O-O {[%emt 0:00:55]} 8. h3 {[%emt 0:02:57]} Rb8 {[%emt 0:03:46]} 9. g4 {[%emt 0:04:51]} Ne8 {[%emt 0:04:46]} 10. f4 {[%emt 0:04:37]} Nc7 {[%emt 0:02:59]} 11. Nd5 {[%emt 0:05:39]} Nxd5 {[%emt 0:06:46]} 12. exd5 {[%emt 0:00:51]} Nd4 {[%emt 0:00:06]} 13. Ng3 {[%emt 0:16:18]} Bh4 {[%emt 0:12:48]} 14. Kh2 {[%emt 0:01:40]} f5 {[%emt 0:10:00]} 15. c3 {[%emt 0:09:11]} Bxg3+ {[%emt 0:01:54]} 16. Kxg3 {[%emt 0:00:07]} Nb5 {[%emt 0:00:13]} 17. g5 {[%emt 0:06:27]} Bd7 {[%emt 0:03:17]} 18. Bd2 {[%emt 0:03:15]} Nc7 {[%emt 0:02:26]} 19. Kh2 {[%emt 0:03:04]} h6 {[%emt 0:00:45]} 20. gxh6 {[%emt 0:01:13]} g6 {[%emt 0:01:34]} 21. Qe1 {[%emt 0:02:30]} Qf6 {[%emt 0:00:53]} 22. Qg3 {[%emt 0:00:36]} Rbe8 {[%emt 0:01:32]} 23. Rae1 {[%emt 0:02:30]} b6 {[%emt 0:00:55]} 24. c4 {[%emt 0:00:52]} b5 {[%emt 0:01:05]} 25. b3 {[%emt 0:04:59]} b4 {[%emt 0:00:10]} 26. Bc1 {[%emt 0:00:48]} Kh7 {[%emt 0:00:17]} 27. h4 {[%emt 0:00:48]} Rf7 {[%emt 0:02:21]} 28. Qg5 {[%emt 0:02:49]} Qh8 {[%emt 0:03:29]} 29. Bb2 {[%emt 0:00:39]} Qf8 {[%emt 0:02:14]} 30. fxe5 {[%emt 0:00:38]} dxe5 {[%emt 0:00:15]} 31. Bxe5 {[%emt 0:00:34]} 1-0

[Event "Reykjavik Open 2025"]
[Site "Reykjavik"]
[Date "2025.04.09"]
[Round "1.24"]
[White "Fartmann, Oliver"]
[Black "Kilic, Eray"]
[Result "0-1"]
[Annotator "ChessBase"]
[ECO "B90"]
[WhiteElo "2109"]
[BlackElo "2473"]
[PlyCount "72"]
[EventDate "2025.04.09"]
[EventType "swiss"]
[EventCountry "ISL"]
[SourceTitle "playchess.com"]
[Source "ChessBase"]
[SourceQuality "1"]
[TimeControl "40/5400+30:1800+30"]

1. e4 {[%emt 0:00:06]} c5 {[%emt 0:00:11]} 2. Nf3 {[%emt 0:00:06]} d6 {[%emt 0:00:04]} 3. d4 {[%emt 0:00:09]} cxd4 {[%emt 0:00:05]} 4. Nxd4 {[%emt 0:00:06]} Nf6 {[%emt 0:00:04]} 5. Nc3 {[%emt 0:00:09]} a6 {[%emt 0:00:04]} 6. Be3 {[%emt 0:00:15]} e5 {[%emt 0:00:10]} 7. Nf3 {[%emt 0:00:18]} Be7 {[%emt 0:01:25]} 8. Bc4 {[%emt 0:02:51]} Be6 {[%emt 0:00:09]} 9. Bxe6 {[%emt 0:01:05]} fxe6 {[%emt 0:00:06]} 10. Ng5 {[%emt 0:00:18]} Qd7 {[%emt 0:01:12]} 11. Qf3 {[%emt 0:01:38]} d5 {[%emt 0:12:45]} 12. O-O-O {[%emt 0:01:46]} d4 {[%emt 0:00:20]} 13. Bxd4 {[%emt 0:00:45]} exd4 {[%emt 0:01:13]} 14. e5 {[%emt 0:00:06]} Nc6 {[%emt 0:05:02]} 15. exf6 {[%emt 0:01:26]} Bxf6 {[%emt 0:00:05]} 16. Qh5+ {[%emt 0:00:36]} g6 {[%emt 0:01:13]} 17. Nce4 {[%emt 0:00:09]} O-O {[%emt 0:00:44]} 18. Nxf6+ {[%emt 0:00:23]} Rxf6 {[%emt 0:00:04]} 19. Qh4 {[%emt 0:00:18]} Raf8 {[%emt 0:00:34]} 20. f3 {[%emt 0:09:27]} Rf5 {[%emt 0:00:39]} 21. Ne4 {[%emt 0:06:05]} Qd5 {[%emt 0:05:38]} 22. Kb1 {[%emt 0:06:18]} a5 {[%emt 0:01:12]} 23. g4 {[%emt 0:11:10]} Rf4 {[%emt 0:00:56]} 24. Ng5 {[%emt 0:04:49]} Qd7 {[%emt 0:02:20]} 25. Qh6 {[%emt 0:14:47]} R4f6 {[%emt 0:02:01]} 26. Rhe1 {[%emt 0:06:10]} e5 {[%emt 0:01:40]} 27. c3 {[%emt 0:00:46]} Rf4 {[%emt 0:05:08]} 28. h4 {[%emt 0:05:13]} Re8 {[%emt 0:02:35]} 29. Re4 {[%emt 0:06:49]} Rxe4 {[%emt 0:11:03]} 30. Nxe4 {[%emt 0:00:06]} Rf8 {[%emt 0:00:03]} 31. h5 {[%emt 0:07:27]} Qg7 {[%emt 0:00:12]} 32. Qd2 {[%emt 0:02:37]} gxh5 {[%emt 0:01:36]} 33. Rg1 {[%emt 0:02:32]} Kh8 {[%emt 0:00:30]} 34. Qh2 {[%emt 0:01:16]} Qf7 {[%emt 0:03:58]} 35. Rg3 {[%emt 0:03:21]} hxg4 {[%emt 0:01:39]} 36. fxg4 {[%emt 0:00:43]} Qg6 {[%emt 0:00:54]} 0-1

[Event "Reykjavik Open 2025"]
[Site "Reykjavik"]
[Date "2025.04.09"]
[Round "1.25"]
[White "Royal, Shreyas"]
[Black "Bartelt, Max Peter"]
[Result "1-0"]
[Annotator "ChessBase"]
[ECO "C10"]
[WhiteElo "2465"]
[BlackElo "2104"]
[PlyCount "75"]
[EventDate "2025.04.09"]
[EventType "swiss"]
[EventCountry "ISL"]
[SourceTitle "playchess.com"]
[Source "ChessBase"]
[SourceQuality "1"]
[TimeControl "40/5400+30:1800+30"]

1. e4 {[%emt 0:00:03]} e6 {[%emt 0:00:12]} 2. d4 {[%emt 0:00:08]} d5 {[%emt 0:00:06]} 3. Nc3 {[%emt 0:00:04]} dxe4 {[%emt 0:01:42]} 4. Nxe4 {[%emt 0:00:08]} Nd7 {[%emt 0:00:40]} 5. Nf3 {[%emt 0:00:16]} Ngf6 {[%emt 0:00:24]} 6. Nxf6+ {[%emt 0:00:37]} Nxf6 {[%emt 0:00:14]} 7. Be3 {[%emt 0:00:17]} Nd5 {[%emt 0:05:38]} 8. Bd2 {[%emt 0:00:08]} c5 {[%emt 0:01:05]} 9. Bb5+ {[%emt 0:00:41]} Bd7 {[%emt 0:04:06]} 10. Bxd7+ {[%emt 0:00:10]} Qxd7 {[%emt 0:00:07]} 11. c4 {[%emt 0:00:09]} Nb6 {[%emt 0:03:47]} 12. Rc1 {[%emt 0:00:07]} cxd4 {[%emt 0:03:54]} 13. c5 {[%emt 0:01:04]} Nd5 {[%emt 0:02:30]} 14. O-O {[%emt 0:26:18]} Rc8 {[%emt 0:06:55]} 15. Ne5 {[%emt 0:10:14]} Qb5 {[%emt 0:04:33]} 16. b4 {[%emt 0:02:42]} Nxb4 {[%emt 0:14:43]} 17. a4 {[%emt 0:01:07]} Qa5 {[%emt 0:04:07]} 18. Nd3 {[%emt 0:04:25]} Nxd3 {[%emt 0:03:13]} 19. Bxa5 {[%emt 0:00:09]} Nxc1 {[%emt 0:00:06]} 20. Qxc1 {[%emt 0:00:06]} Bxc5 {[%emt 0:00:16]} 21. Bb4 {[%emt 0:01:03]} b6 {[%emt 0:01:06]} 22. Qc4 {[%emt 0:09:05]} O-O {[%emt 0:01:03]} 23. Bxc5 {[%emt 0:01:51]} bxc5 {[%emt 0:00:14]} 24. f4 {[%emt 0:00:05]} Rc7 {[%emt 0:02:53]} 25. Rb1 {[%emt 0:00:46]} Rd8 {[%emt 0:02:07]} 26. Kf2 {[%emt 0:01:46]} h6 {[%emt 0:00:19]} 27. Rb3 {[%emt 0:01:17]} a5 {[%emt 0:02:07]} 28. Ke2 {[%emt 0:00:20]} Rd5 {[%emt 0:00:05]} 29. Kd3 {[%emt 0:00:35]} g5 {[%emt 0:01:22]} 30. Rb5 {[%emt 0:03:20]} gxf4 {[%emt 0:00:32]} 31. Rxa5 {[%emt 0:00:02]} Re5 {[%emt 0:02:57]} 32. Rb5 {[%emt 0:02:10]} Re3+ {[%emt 0:00:21]} 33. Kd2 {[%emt 0:00:01]} Rc3 {[%emt 0:03:02]} 34. Qe2 {[%emt 0:00:12]} f3 {[%emt 0:00:40]} 35. Rb8+ {[%emt 0:00:18]} Kh7 {[%emt 0:00:19]} 36. Qe5 {[%emt 0:00:16]} fxg2 {[%emt 0:01:03]} 37. Rh8+ {[%emt 0:00:06]} Kg6 {[%emt 0:00:03]} 38. Rg8+ {[%emt 0:00:38]} 1-0

[Event "Reykjavik Open 2025"]
[Site "Reykjavik"]
[Date "2025.04.09"]
[Round "1.26"]
[White "Ponnio, Toni"]
[Black "Hjartarson, Johann"]
[Result "0-1"]
[Annotator "ChessBase"]
[ECO "E89"]
[WhiteElo "2103"]
[BlackElo "2461"]
[PlyCount "62"]
[EventDate "2025.04.09"]
[EventType "swiss"]
[EventCountry "ISL"]
[SourceTitle "playchess.com"]
[Source "ChessBase"]
[SourceQuality "1"]
[TimeControl "40/5400+30:1800+30"]

1. d4 {[%emt 0:00:04]} Nf6 {[%emt 0:00:11]} 2. c4 {[%emt 0:00:18]} g6 {[%emt 0:00:30]} 3. f3 {[%emt 0:01:18]} Bg7 {[%emt 0:01:09]} 4. e4 {[%emt 0:00:10]} d6 {[%emt 0:00:10]} 5. Nc3 {[%emt 0:00:21]} O-O {[%emt 0:00:07]} 6. Nge2 {[%emt 0:00:17]} e5 {[%emt 0:01:20]} 7. Be3 {[%emt 0:04:44]} c6 {[%emt 0:00:26]} 8. d5 {[%emt 0:01:01]} cxd5 {[%emt 0:02:12]} 9. cxd5 {[%emt 0:00:16]} a6 {[%emt 0:01:03]} 10. Qd2 {[%emt 0:05:31]} Nbd7 {[%emt 0:00:43]} 11. g4 {[%emt 0:05:16]} h5 {[%emt 0:01:44]} 12. h3 {[%emt 0:03:34]} Nh7 {[%emt 0:09:12]} 13. Rg1 {[%emt 0:31:27]} h4 {[%emt 0:05:15]} 14. O-O-O {[%emt 0:00:35]} b5 {[%emt 0:00:48]} 15. b3 {[%emt 0:22:14]} Nb6 {[%emt 0:13:13]} 16. Kb2 {[%emt 0:01:46]} b4 {[%emt 0:04:46]} 17. Nb1 {[%emt 0:00:10]} a5 {[%emt 0:00:19]} 18. Nc1 {[%emt 0:01:46]} Bd7 {[%emt 0:01:36]} 19. Qf2 {[%emt 0:01:55]} Nc8 {[%emt 0:04:11]} 20. Nd2 {[%emt 0:01:46]} a4 {[%emt 0:07:57]} 21. Nc4 {[%emt 0:04:26]} axb3 {[%emt 0:15:32]} 22. Nxb3 {[%emt 0:02:34]} Bb5 {[%emt 0:07:07]} 23. Bd3 {[%emt 0:03:14]} Bf6 {[%emt 0:02:29]} 24. Kb1 {[%emt 0:05:32]} Bxc4 {[%emt 0:04:32]} 25. Bxc4 {[%emt 0:00:03]} Bg5 {[%emt 0:00:41]} 26. Rc1 {[%emt 0:02:23]} Ra3 {[%emt 0:06:40]} 27. Rgd1 {[%emt 0:00:36]} Qf6 {[%emt 0:01:03]} 28. Bxg5 {[%emt 0:00:37]} Nxg5 {[%emt 0:00:36]} 29. Qxh4 {[%emt 0:00:29]} Nb6 {[%emt 0:00:53]} 30. Qf2 {[%emt 0:00:28]} Na4 {[%emt 0:00:59]} 31. Rd3 {[%emt 0:00:33]} Nxe4 {[%emt 0:00:31]} 0-1

[Event "Reykjavik Open 2025"]
[Site "Reykjavik"]
[Date "2025.04.09"]
[Round "1.27"]
[White "Garifullina, Leya"]
[Black "Lacroix, Romain"]
[Result "1-0"]
[Annotator "ChessBase"]
[ECO "B12"]
[WhiteElo "2459"]
[BlackElo "2101"]
[PlyCount "87"]
[EventDate "2025.04.09"]
[EventType "swiss"]
[EventCountry "ISL"]
[SourceTitle "playchess.com"]
[Source "ChessBase"]
[SourceQuality "1"]
[TimeControl "40/5400+30:1800+30"]

1. e4 {[%emt 0:00:03]} c6 {[%emt 0:31:06]} 2. d4 {[%emt 0:00:08]} d5 {[%emt 0:00:08]} 3. e5 {[%emt 0:00:13]} c5 {[%emt 0:00:13]} 4. dxc5 {[%emt 0:00:06]} e6 {[%emt 0:00:14]} 5. Nf3 {[%emt 0:00:09]} Bxc5 {[%emt 0:00:12]} 6. a3 {[%emt 0:00:03]} Nd7 {[%emt 0:00:41]} 7. c4 {[%emt 0:01:28]} Qb6 {[%emt 0:18:46]} 8. b4 {[%emt 0:14:12]} Bxf2+ {[%emt 0:05:53]} 9. Ke2 {[%emt 0:00:57]} dxc4 {[%emt 0:07:38]} 10. Nc3 {[%emt 0:00:28]} Bh4 {[%emt 0:09:40]} 11. Nxh4 {[%emt 0:01:08]} Nxe5 {[%emt 0:00:14]} 12. Be3 {[%emt 0:00:31]} Qc6 {[%emt 0:02:20]} 13. Qd4 {[%emt 0:03:22]} f6 {[%emt 0:00:46]} 14. b5 {[%emt 0:00:20]} Qc7 {[%emt 0:01:12]} 15. Ne4 {[%emt 0:03:44]} Ne7 {[%emt 0:05:53]} 16. Nd6+ {[%emt 0:04:49]} Kf8 {[%emt 0:00:08]} 17. Rc1 {[%emt 0:05:25]} Bd7 {[%emt 0:00:26]} 18. Nf3 {[%emt 0:04:54]} Nxf3 {[%emt 0:01:40]} 19. gxf3 {[%emt 0:01:13]} Nd5 {[%emt 0:01:47]} 20. Nxc4 {[%emt 0:03:37]} Bxb5 {[%emt 0:00:49]} 21. Kf2 {[%emt 0:01:08]} Kf7 {[%emt 0:04:16]} 22. Ne5+ {[%emt 0:02:22]} Qxe5 {[%emt 0:00:30]} 23. Qxe5 {[%emt 0:00:07]} fxe5 {[%emt 0:00:05]} 24. Bxb5 {[%emt 0:00:04]} a6 {[%emt 0:02:30]} 25. Bd3 {[%emt 0:00:20]} Rad8 {[%emt 0:01:12]} 26. Be4 {[%emt 0:00:50]} Rd7 {[%emt 0:01:01]} 27. Rhd1 {[%emt 0:00:46]} Kf6 {[%emt 0:00:49]} 28. h4 {[%emt 0:00:52]} h6 {[%emt 0:00:13]} 29. Rg1 {[%emt 0:01:37]} Nf4 {[%emt 0:00:49]} 30. Bxf4 {[%emt 0:02:40]} exf4 {[%emt 0:00:07]} 31. Rg6+ {[%emt 0:00:27]} Kf7 {[%emt 0:03:45]} 32. Kg2 {[%emt 0:00:48]} Rhd8 {[%emt 0:00:16]} 33. Kh3 {[%emt 0:00:43]} Rd1 {[%emt 0:00:47]} 34. Rc7+ {[%emt 0:02:17]} R8d7 {[%emt 0:00:07]} 35. Rxd7+ {[%emt 0:00:05]} Rxd7 {[%emt 0:00:06]} 36. Rg1 {[%emt 0:00:09]} Kf6 {[%emt 0:01:00]} 37. h5 {[%emt 0:00:25]} Rc7 {[%emt 0:00:45]} 38. Kg4 {[%emt 0:00:24]} Rc5 {[%emt 0:00:52]} 39. Rh1 {[%emt 0:01:41]} Ra5 {[%emt 0:00:14]} 40. Bxb7 {[%emt 0:00:18]} Rxa3 {[%emt 0:00:19]} 41. Kxf4 {[%emt 0:30:06]} g5+ {[%emt 0:02:43]} 42. hxg6 {[%emt 0:00:00]} Kxg6 {[%emt 0:00:10]} 43. Be4+ {[%emt 0:00:00]} Kg7 {[%emt 0:00:05]} 44. Ke5 {[%emt 0:00:00]} 1-0

[Event "Reykjavik Open 2025"]
[Site "Reykjavik"]
[Date "2025.04.09"]
[Round "1.28"]
[White "Kjartansson, Gudmundur"]
[Black "Beisteiner, Joachim"]
[Result "1-0"]
[Annotator "ChessBase"]
[ECO "A11"]
[WhiteElo "2450"]
[BlackElo "2097"]
[PlyCount "39"]
[EventDate "2025.04.09"]
[EventType "swiss"]
[EventCountry "ISL"]
[SourceTitle "playchess.com"]
[Source "ChessBase"]
[SourceQuality "1"]
[TimeControl "40/5400+30:1800+30"]

1. c4 {[%emt 0:00:02]} c6 {[%emt 0:00:38]} 2. Nf3 {[%emt 0:00:57]} d5 {[%emt 0:00:26]} 3. g3 {[%emt 0:00:26]} Nf6 {[%emt 0:00:47]} 4. Bg2 {[%emt 0:00:24]} dxc4 {[%emt 0:00:45]} 5. O-O {[%emt 0:04:07]} Nbd7 {[%emt 0:01:07]} 6. Na3 {[%emt 0:01:45]} Nb6 {[%emt 0:05:08]} 7. Qc2 {[%emt 0:00:12]} Qd5 {[%emt 0:02:19]} 8. b3 {[%emt 0:01:10]} cxb3 {[%emt 0:09:15]} 9. axb3 {[%emt 0:00:06]} g6 {[%emt 0:00:57]} 10. Nc4 {[%emt 0:03:51]} Qd8 {[%emt 0:05:39]} 11. Nfe5 {[%emt 0:14:31]} Nbd7 {[%emt 0:13:34]} 12. d4 {[%emt 0:10:18]} Bg7 {[%emt 0:02:22]} 13. Rd1 {[%emt 0:03:49]} O-O {[%emt 0:01:30]} 14. e4 {[%emt 0:01:17]} Qc7 {[%emt 0:09:54]} 15. Nf3 {[%emt 0:15:48]} Nh5 {[%emt 0:03:52]} 16. Ba3 {[%emt 0:18:45]} b5 {[%emt 0:08:22]} 17. Ne3 {[%emt 0:01:20]} Bb7 {[%emt 0:06:39]} 18. Nd5 {[%emt 0:01:23]} Qb8 {[%emt 0:01:58]} 19. Nxe7+ {[%emt 0:00:17]} Kh8 {[%emt 0:00:06]} 20. Nxc6 {[%emt 0:00:47]} 1-0

[Event "Reykjavik Open 2025"]
[Site "Reykjavik"]
[Date "2025.04.09"]
[Round "1.29"]
[White "Clyde, Jordan"]
[Black "Larkin, Vladyslav"]
[Result "1/2-1/2"]
[Annotator "ChessBase"]
[ECO "A06"]
[WhiteElo "2095"]
[BlackElo "2449"]
[PlyCount "63"]
[EventDate "2025.04.09"]
[EventType "swiss"]
[EventCountry "ISL"]
[SourceTitle "playchess.com"]
[Source "ChessBase"]
[SourceQuality "1"]
[TimeControl "40/5400+30:1800+30"]

1. Nf3 {[%emt 0:00:05]} Nf6 {[%emt 0:00:24]} 2. d3 {[%emt 0:00:39]} d5 {[%emt 0:00:38]} 3. Bg5 {[%emt 0:01:16]} e6 {[%emt 0:02:32]} 4. c3 {[%emt 0:05:58]} Be7 {[%emt 0:00:39]} 5. e3 {[%emt 0:00:50]} h6 {[%emt 0:00:59]} 6. Bh4 {[%emt 0:00:22]} b6 {[%emt 0:11:01]} 7. Qa4+ {[%emt 0:06:24]} c6 {[%emt 0:03:55]} 8. e4 {[%emt 0:06:31]} b5 {[%emt 0:00:49]} 9. Qc2 {[%emt 0:00:54]} a5 {[%emt 0:04:33]} 10. Nbd2 {[%emt 0:15:47]} Ba6 {[%emt 0:01:14]} 11. d4 {[%emt 0:09:19]} O-O {[%emt 0:18:40]} 12. Be2 {[%emt 0:09:43]} b4 {[%emt 0:13:34]} 13. c4 {[%emt 0:06:42]} c5 {[%emt 0:07:37]} 14. dxc5 {[%emt 0:04:46]} Nc6 {[%emt 0:01:03]} 15. O-O {[%emt 0:03:05]} d4 {[%emt 0:03:27]} 16. e5 {[%emt 0:04:47]} Nd7 {[%emt 0:00:05]} 17. Bxe7 {[%emt 0:00:13]} Qxe7 {[%emt 0:00:03]} 18. Nb3 {[%emt 0:00:23]} a4 {[%emt 0:00:44]} 19. Nbxd4 {[%emt 0:01:51]} Nxd4 {[%emt 0:00:06]} 20. Nxd4 {[%emt 0:00:07]} Qxc5 {[%emt 0:00:03]} 21. Nf3 {[%emt 0:01:45]} Bb7 {[%emt 0:00:20]} 22. Rfe1 {[%emt 0:01:44]} a3 {[%emt 0:00:32]} 23. Rad1 {[%emt 0:01:11]} Bc6 {[%emt 0:01:35]} 24. b3 {[%emt 0:04:15]} Rad8 {[%emt 0:00:51]} 25. Qd2 {[%emt 0:03:05]} Bxf3 {[%emt 0:03:40]} 26. Bxf3 {[%emt 0:00:08]} Nxe5 {[%emt 0:00:19]} 27. Qxd8 {[%emt 0:03:13]} Rxd8 {[%emt 0:00:04]} 28. Rd4 {[%emt 0:00:05]} Rd6 29. Rxd6 {[%emt 0:00:30]} Kh7 {[%emt 0:00:35]} 30. Rd8 {[%emt 0:03:17]} Kg6 {[%emt 0:03:45]} 31. Be2 {[%emt 0:00:21]} Kf6 {[%emt 0:00:09]} 32. Red1 {[%emt 0:00:28]} 1/2-1/2

[Event "Reykjavik Open 2025"]
[Site "Reykjavik"]
[Date "2025.04.09"]
[Round "1.30"]
[White "Lohia, Sohum"]
[Black "Cramling Bellon, Anna"]
[Result "1-0"]
[Annotator "ChessBase"]
[ECO "B30"]
[WhiteElo "2354"]
[BlackElo "2046"]
[PlyCount "87"]
[EventDate "2025.04.09"]
[EventType "swiss"]
[EventCountry "ISL"]
[SourceTitle "playchess.com"]
[Source "ChessBase"]
[SourceQuality "1"]
[TimeControl "40/5400+30:1800+30"]

1. e4 {[%emt 0:00:08]} c5 {[%emt 0:00:17]} 2. Nf3 {[%emt 0:00:10]} Nc6 {[%emt 0:00:31]} 3. Bb5 {[%emt 0:00:12]} e5 {[%emt 0:04:23]} 4. O-O {[%emt 0:00:46]} Bd6 {[%emt 0:08:20]} 5. d4 {[%emt 0:02:26]} cxd4 {[%emt 0:08:12]} 6. c3 {[%emt 0:00:18]} Qb6 {[%emt 0:11:43]} 7. Bxc6 {[%emt 0:04:03]} dxc6 {[%emt 0:03:41]} 8. cxd4 {[%emt 0:01:42]} Bg4 {[%emt 0:00:41]} 9. dxe5 {[%emt 0:08:36]} Bxe5 {[%emt 0:01:50]} 10. Nbd2 {[%emt 0:08:04]} Rd8 {[%emt 0:10:14]} 11. h3 {[%emt 0:04:49]} Bxf3 {[%emt 0:00:17]} 12. Qxf3 {[%emt 0:00:14]} Qb5 {[%emt 0:02:21]} 13. a4 {[%emt 0:09:04]} Qb4 {[%emt 0:05:00]} 14. Ra3 {[%emt 0:19:06]} Nf6 {[%emt 0:08:43]} 15. Rb3 {[%emt 0:04:48]} Qxa4 {[%emt 0:00:18]} 16. Rxb7 {[%emt 0:00:36]} O-O {[%emt 0:00:31]} 17. b3 {[%emt 0:04:20]} Qa6 {[%emt 0:02:46]} 18. Rb4 {[%emt 0:00:17]} c5 {[%emt 0:12:09]} 19. Ra4 {[%emt 0:01:02]} Qb7 {[%emt 0:00:08]} 20. Nc4 {[%emt 0:01:40]} Bb8 {[%emt 0:00:18]} 21. Bg5 {[%emt 0:02:29]} Rd4 {[%emt 0:03:45]} 22. Bxf6 {[%emt 0:01:42]} gxf6 {[%emt 0:00:03]} 23. Re1 {[%emt 0:10:46]} Qe7 {[%emt 0:03:39]} 24. Ne3 {[%emt 0:01:59]} Qe5 {[%emt 0:09:24]} 25. Nf5 {[%emt 0:00:45]} Kh8 {[%emt 0:01:10]} 26. Nxd4 {[%emt 0:00:29]} cxd4 {[%emt 0:00:04]} 27. g3 {[%emt 0:00:42]} Rd8 {[%emt 0:02:28]} 28. Rd1 {[%emt 0:00:17]} a5 {[%emt 0:00:28]} 29. Qd3 {[%emt 0:00:46]} Ba7 {[%emt 0:00:25]} 30. b4 {[%emt 0:01:06]} Qe6 {[%emt 0:01:10]} 31. Rxa5 {[%emt 0:00:20]} Bb8 {[%emt 0:00:12]} 32. Rd5 {[%emt 0:01:01]} Rg8 {[%emt 0:00:22]} 33. Rxd4 {[%emt 0:00:55]} Qxh3 {[%emt 0:00:54]} 34. Rd8 {[%emt 0:00:11]} Be5 {[%emt 0:00:28]} 35. Rxg8+ {[%emt 0:00:18]} Kxg8 {[%emt 0:00:03]} 36. Qf3 {[%emt 0:00:49]} h5 {[%emt 0:00:50]} 37. Qf5 {[%emt 0:00:31]} Qxf5 {[%emt 0:00:12]} 38. exf5 {[%emt 0:00:23]} Kf8 {[%emt 0:00:09]} 39. b5 {[%emt 0:00:04]} Ke7 {[%emt 0:00:11]} 40. b6 {[%emt 0:00:06]} Bd6 {[%emt 0:01:22]} 41. b7 {[%emt 0:30:05]} Bc7 {[%emt 0:30:16]} 42. Rc1 {[%emt 0:00:07]} Kd7 {[%emt 0:00:32]} 43. Kg2 {[%emt 0:00:07]} Bb8 {[%emt 0:00:52]} 44. Rc8 {[%emt 0:03:58]} 1-0